[Event "Kuwait Championship Stage-I 2024"]
[Site "Qadsiya"]
[Date "2024.01.22"]
[Round "1.12"]
[White "Al Subaie, Nasser"]
[Black "Alsultan, Muhannad"]
[Result "1-0"]
[ECO "B15"]
[WhiteElo "1457"]
[BlackElo "1127"]
[Annotator "NA RC COMBH"]
[PlyCount "97"]
[EventDate "2024.01.22"]
[EventType "swiss"]
[EventCountry "KUW"]
[SourceTitle "playchess.com"]
[Source "ChessBase"]
[SourceQuality "1"]
[TimeControl "5400+30"]

1. e4 {[%emt 0:00:06]} c6 {[%emt 0:00:35]} 2. d4 {[%emt 0:01:00]} d5 {[%emt 0:00:15]} 3. Nc3 {[%emt 0:00:26]} g6 {[%emt 0:01:21]} 4. exd5 {[%emt 0:02:34]} cxd5 {[%emt 0:00:48]} 5. h4 {[%emt 0:01:25]} h5 {[%emt 0:04:05]} 6. Bf4 {[%emt 0:01:12]} Nc6 {[%emt 0:01:53]} 7. Nb5 {[%emt 0:00:21]} e5 {[%emt 0:03:45]} 8. dxe5 {[%emt 0:00:57]} a6 {[%emt 0:00:51]} 9. Nd6+ {[%emt 0:02:27]} Bxd6 {[%emt 0:03:34]} 10. exd6 {[%emt 0:02:48]} Qa5+ {[%emt 0:00:32]} 11. Qd2 {[%emt 0:04:01]} Be6 {[%emt 0:01:16]} 12. Qxa5 {[%emt 0:00:54]} Nxa5 {[%emt 0:00:13]} 13. Bd3 {[%emt 0:01:20]} Nf6 {[%emt 0:01:07]} 14. Be5 {[%emt 0:00:26]} Ne4 {[%emt 0:04:20]} 15. Bxh8 {[%emt 0:10:02]} Nxd6 {[%emt 0:00:39]} 16. Be5 {[%emt 0:01:16]} Ndc4 {[%emt 0:00:33]} 17. Bf6 {[%emt 0:01:14]} Nxb2 {[%emt 1:13:13]} 18. Bxb2 {[%emt 1:07:01]} Rd8 {[%emt 0:00:00]} 19. O-O-O {[%emt 0:00:00]} d4 {[%emt 0:00:00]} 20. Bxd4 {[%emt 0:00:00]} Rxd4 {[%emt 0:00:00]} 21. Bb5+ {[%emt 0:00:00]} axb5 {[%emt 0:00:00]} 22. Rxd4 {[%emt 0:00:00]} Bxa2 {[%emt 0:00:00]} 23. Rh3 {[%emt 0:00:00]} Bc4 {[%emt 0:00:00]} 24. Re3+ {[%emt 0:00:00]} Kf8 {[%emt 0:00:00]} 25. Ra3 {[%emt 0:00:00]} Nc6 {[%emt 0:00:00]} 26. Rd7 {[%emt 0:00:00]} Ne5 {[%emt 0:00:00]} 27. Rxb7 {[%emt 0:00:00]} Ng4 {[%emt 0:00:00]} 28. f3 {[%emt 0:05:00]} Nh2 {[%emt 0:05:30]} 29. Ra5 {[%emt 0:00:30]} Nf1 {[%emt 0:00:30]} 30. Ra8+ {[%emt 0:00:30]} Kg7 {[%emt 0:00:00]} 31. Re8 {[%emt 0:00:00]} Kf6 {[%emt 0:00:00]} 32. g4 {[%emt 0:00:00]} Ng3 {[%emt 0:01:30]} 33. Rc8 {[%emt 0:01:30]} Ke5 {[%emt 0:00:30]} 34. Rxb5+ {[%emt 0:00:30]} Bxb5 {[%emt 0:00:00]} 35. Rc5+ {[%emt 0:00:00]} Kf4 {[%emt 0:00:00]} 36. gxh5 {[%emt 0:00:00]} Nxh5 {[%emt 0:00:00]} 37. Rxb5 {[%emt 0:00:00]} Kg3 {[%emt 0:00:00]} 38. c4 {[%emt 0:00:00]} Kxh4 {[%emt 0:00:00]} 39. c5 {[%emt 0:00:00]} Nf6 {[%emt 0:00:00]} 40. c6 {[%emt 0:00:00]} Ne8 {[%emt 0:00:00]} 41. Rb7 {[%emt 0:00:00]} f5 {[%emt 0:00:00]} 42. c7 {[%emt 0:00:00]} Nxc7 {[%emt 0:00:00]} 43. Rxc7 {[%emt 0:00:00]} g5 {[%emt 0:00:00]} 44. Ne2 {[%emt 0:00:00]} g4 {[%emt 0:00:00]} 45. Rh7+ {[%emt 0:00:00]} Kg5 {[%emt 0:00:00]} 46. f4+ {[%emt 0:00:00]} Kg6 {[%emt 0:00:00]} 47. Re7 {[%emt 0:00:00]} Kh5 {[%emt 0:00:00]} 48. Re5 {[%emt 0:00:00]} Kg6 {[%emt 0:00:00]} 49. Ng3 {[%emt 0:00:00]} 1-0

[Event "Kuwait Championship Stage-I 2024"]
[Site "Qadsiya"]
[Date "2024.01.23"]
[Round "2.1"]
[White "Al-Hajiri, Bader"]
[Black "Khalaf, Ali"]
[Result "1-0"]
[ECO "A70"]
[WhiteElo "1890"]
[BlackElo "1426"]
[Annotator "NA RC COMBH"]
[PlyCount "119"]
[EventDate "2024.01.22"]
[EventType "swiss"]
[EventCountry "KUW"]
[SourceTitle "playchess.com"]
[Source "ChessBase"]
[SourceQuality "1"]
[TimeControl "5400+30"]

1. d4 {[%emt 0:00:03]} Nf6 {[%emt 0:04:29]} 2. c4 {[%emt 0:00:44]} c5 {[%emt 0:00:11]} 3. d5 {[%emt 0:00:43]} e6 {[%emt 0:00:06]} 4. Nc3 {[%emt 0:00:18]} exd5 {[%emt 0:00:07]} 5. cxd5 {[%emt 0:01:57]} d6 {[%emt 0:00:18]} 6. e4 {[%emt 0:00:37]} g6 {[%emt 0:00:06]} 7. Nf3 {[%emt 0:03:42]} a6 {[%emt 0:00:24]} 8. a4 {[%emt 0:00:35]} Bg4 {[%emt 0:00:06]} 9. Be2 {[%emt 0:01:52]} Bxf3 {[%emt 0:02:04]} 10. gxf3 {[%emt 0:01:24]} Bg7 {[%emt 0:09:19]} 11. Be3 {[%emt 0:00:50]} O-O {[%emt 0:11:57]} 12. h4 {[%emt 0:01:23]} h5 {[%emt 0:00:29]} 13. Qc2 {[%emt 0:01:22]} Nbd7 {[%emt 0:01:24]} 14. f4 {[%emt 0:00:43]} Re8 {[%emt 0:06:46]} 15. Kd2 {[%emt 0:09:53]} Qa5 {[%emt 0:02:56]} 16. f3 {[%emt 0:01:28]} c4 {[%emt 0:11:15]} 17. Bxc4 {[%emt 0:08:19]} Rac8 {[%emt 0:05:39]} 18. Bd3 {[%emt 0:00:50]} Nb6 {[%emt 0:09:38]} 19. Ra3 {[%emt 0:14:46]} Nbxd5 {[%emt 0:14:13]} 20. exd5 {[%emt 0:00:57]} Nxd5 {[%emt 0:00:10]} 21. Bf2 {[%emt 0:12:25]} Qb4 {[%emt 0:06:25]} 22. Be4 {[%emt 0:05:36]} Nxf4 {[%emt 0:02:15]} 23. Qb3 {[%emt 0:02:32]} Rxe4 {[%emt 0:01:51]} 24. fxe4 {[%emt 0:00:09]} Bxc3+ {[%emt 0:00:11]} 25. bxc3 {[%emt 0:01:47]} Qxe4 {[%emt 0:00:07]} 26. Re1 {[%emt 0:00:19]} Qd3+ {[%emt 0:00:37]} 27. Kc1 {[%emt 0:00:00]} Ne2+ {[%emt 0:02:35]} 28. Rxe2 {[%emt 0:06:10]} Qxe2 {[%emt 0:00:17]} 29. Bd4 {[%emt 0:02:10]} Qe1+ {[%emt 0:00:52]} 30. Qd1 {[%emt 0:02:23]} Qxh4 {[%emt 0:00:37]} 31. Rb3 {[%emt 0:00:30]} Qg5+ {[%emt 0:01:08]} 32. Kb1 {[%emt 0:00:55]} b5 {[%emt 0:00:50]} 33. axb5 {[%emt 0:00:42]} axb5 {[%emt 0:00:06]} 34. Qe2 {[%emt 0:00:05]} Qf5+ {[%emt 0:00:28]} 35. Kb2 {[%emt 0:00:21]} Rb8 {[%emt 0:02:30]} 36. Ba7 {[%emt 0:03:08]} Ra8 {[%emt 0:04:06]} 37. Rxb5 {[%emt 0:01:45]} Qe6 {[%emt 0:00:21]} 38. Qxe6 {[%emt 0:02:50]} fxe6 {[%emt 0:00:10]} 39. Rb7 {[%emt 0:00:03]} Rd8 {[%emt 0:01:10]} (39... h4 $11) 40. c4 $11 {[%emt 0:00:37]} (40. Be3 $14) 40... h4 {[%emt 0:01:00]} 41. Kc3 {[%emt 0:03:10]} h3 {[%emt 0:00:44]} 42. Bg1 {[%emt 0:00:31]} Rc8 {[%emt 0:00:50]} 43. Kb4 {[%emt 0:01:02]} g5 {[%emt 0:00:18]} 44. Rd7 {[%emt 0:03:20]} Rb8+ {[%emt 0:00:30]} 45. Kc3 {[%emt 0:00:11]} g4 {[%emt 0:00:30]} 46. Rxd6 {[%emt 0:00:30]} Kf7 {[%emt 0:00:00]} 47. Bh2 {[%emt 0:00:46]} Rg8 {[%emt 0:00:10]} 48. Rd3 {[%emt 0:00:26]} Kf6 {[%emt 0:00:29]} 49. c5 {[%emt 0:00:08]} Kf5 {[%emt 0:00:31]} 50. c6 {[%emt 0:00:10]} Rc8 {[%emt 0:00:10]} 51. Rd6 {[%emt 0:01:35]} e5 {[%emt 0:00:26]} 52. Kc4 {[%emt 0:00:12]} Ke4 {[%emt 0:00:26]} 53. Kc5 {[%emt 0:00:25]} Kf3 {[%emt 0:00:14]} 54. Bxe5 {[%emt 0:00:04]} g3 {[%emt 0:00:48]} 55. Rd3+ {[%emt 0:00:03]} Ke4 {[%emt 0:00:04]} 56. Rxg3 {[%emt 0:00:06]} Kxe5 {[%emt 0:01:44]} 57. Rxh3 {[%emt 0:00:06]} Ke6 {[%emt 0:01:10]} 58. Rh7 {[%emt 0:00:29]} Ke5 {[%emt 0:00:34]} 59. c7 {[%emt 0:00:12]} Ke6 {[%emt 0:00:14]} 60. Kc6 {[%emt 0:00:04]} 1-0

[Event "Kuwait Championship Stage-I 2024"]
[Site "Qadsiya"]
[Date "2024.01.23"]
[Round "2.2"]
[White "Alruwayeh, Talal"]
[Black "Hashem, Khaled"]
[Result "0-1"]
[ECO "C44"]
[WhiteElo "1407"]
[BlackElo "1868"]
[Annotator "NA RC COMBH"]
[PlyCount "54"]
[EventDate "2024.01.22"]
[EventType "swiss"]
[EventCountry "KUW"]
[SourceTitle "playchess.com"]
[Source "ChessBase"]
[SourceQuality "1"]
[TimeControl "5400+30"]

1. e4 {[%emt 0:00:54]} e5 {[%emt 0:00:11]} 2. c4 {[%emt 0:01:54]} Nc6 {[%emt 0:01:29]} 3. Nf3 {[%emt 0:00:57]} Bc5 {[%emt 0:00:07]} 4. a3 {[%emt 0:02:05]} a5 {[%emt 0:00:11]} 5. Nc3 {[%emt 0:00:38]} d6 {[%emt 0:00:25]} 6. d3 {[%emt 0:00:28]} Bg4 {[%emt 0:05:05]} 7. Be2 {[%emt 0:00:43]} Nge7 {[%emt 0:05:58]} 8. Be3 {[%emt 0:02:57]} Bxf3 {[%emt 0:03:34]} 9. gxf3 {[%emt 0:01:32]} Nd4 {[%emt 0:06:26]} 10. f4 {[%emt 0:20:42]} exf4 {[%emt 0:07:39]} 11. Bxf4 {[%emt 0:00:25]} Ng6 {[%emt 0:00:13]} 12. Be3 {[%emt 0:02:36]} O-O {[%emt 0:00:31]} 13. Nd5 {[%emt 0:03:04]} f5 {[%emt 0:10:23]} 14. exf5 {[%emt 0:13:22]} Rxf5 {[%emt 0:02:16]} 15. Bxd4 {[%emt 0:02:31]} Bxd4 {[%emt 0:01:07]} 16. Ne3 {[%emt 0:00:24]} Rxf2 {[%emt 0:01:34]} 17. Ng4 {[%emt 0:05:32]} Rf8 {[%emt 0:03:11]} 18. Qc2 {[%emt 0:01:09]} Qh4+ {[%emt 0:02:51]} 19. Kd2 {[%emt 0:03:49]} h5 {[%emt 0:01:15]} 20. Nh6+ {[%emt 0:00:59]} gxh6 {[%emt 0:00:18]} 21. Rag1 {[%emt 0:00:37]} Bxg1 {[%emt 0:01:30]} 22. Rxg1 {[%emt 0:00:03]} Rf6 {[%emt 0:02:39]} 23. Kc1 {[%emt 0:02:59]} Qxh2 {[%emt 0:05:30]} 24. Qd1 {[%emt 0:00:16]} Raf8 {[%emt 0:01:16]} 25. Kb1 {[%emt 0:01:27]} h4 {[%emt 0:02:35]} 26. Bh5 {[%emt 0:31:27]} Qxg1 {[%emt 0:00:10]} 27. Qxg1 {[%emt 0:00:00]} Rf1+ {[%emt 0:00:02]} 0-1

[Event "Kuwait Championship Stage-I 2024"]
[Site "Qadsiya"]
[Date "2024.01.23"]
[Round "2.3"]
[White "Al Ibrahim, Abdulrahman"]
[Black "Aljadi, Hussain"]
[Result "1-0"]
[ECO "C70"]
[WhiteElo "1854"]
[BlackElo "1419"]
[Annotator "NA RC COMBH"]
[PlyCount "62"]
[EventDate "2024.01.22"]
[EventType "swiss"]
[EventCountry "KUW"]
[SourceTitle "playchess.com"]
[Source "ChessBase"]
[SourceQuality "1"]
[TimeControl "5400+30"]

1. e4 {[%emt 0:00:10]} e5 {[%emt 0:00:06]} 2. Nf3 {[%emt 0:00:07]} Nc6 {[%emt 0:00:10]} 3. Bb5 {[%emt 0:00:13]} a6 {[%emt 0:00:14]} 4. Ba4 {[%emt 0:00:06]} Bc5 {[%emt 0:00:12]} 5. c3 {[%emt 0:01:10]} f5 {[%emt 0:00:29]} 6. O-O {[%emt 0:13:08] C70: Ruy Lopez: 3...a6 4 Ba4, Norwegian and Delayed Schliemann.} fxe4 {[%emt 0:02:46]} 7. Nxe5 {[%emt 0:02:07]} Nf6 {[%emt 0:03:34]} 8. d4 {[%emt 0:07:20]} exd3 {[%emt 0:12:23]} 9. Nxd3 {[%emt 0:01:20]} Be7 {[%emt 0:00:44]} 10. Bb3 {[%emt 0:11:27]} Na5 {[%emt 0:01:21]} 11. Bc2 {[%emt 0:00:20]} O-O {[%emt 0:02:59]} 12. Nd2 {[%emt 0:04:31]} d5 {[%emt 0:05:21]} 13. h3 {[%emt 0:05:43]} Bf5 {[%emt 0:07:02]} 14. Nf3 {[%emt 0:02:26]} Bd6 {[%emt 0:06:46]} 15. Nd4 {[%emt 0:01:17]} Bd7 {[%emt 0:01:04]} 16. Nf4 {[%emt 0:05:22]} Re8 {[%emt 0:04:42]} 17. Nf5 {[%emt 0:07:04]} Bxf4 {[%emt 0:11:37]} 18. Bxf4 {[%emt 0:00:19]} Nc4 {[%emt 0:01:22]} 19. Rb1 {[%emt 0:09:35]} Ne5 {[%emt 0:15:46]} 20. Re1 {[%emt 0:04:34]} Ng6 {[%emt 0:02:42]} 21. Rxe8+ {[%emt 0:02:25]} Bxe8 {[%emt 0:00:48]} 22. Bg5 {[%emt 0:01:16]} Bf7 {[%emt 0:04:06]} 23. Qd4 {[%emt 0:01:42]} Be6 {[%emt 0:03:11]} 24. Re1 {[%emt 0:07:24]} Nf8 {[%emt 0:04:32]} 25. Nh6+ {[%emt 0:06:36]} gxh6 {[%emt 0:02:05]} (25... Kh8 $142 26. Bf5 c5) 26. Bxf6 {[%emt 0:00:10]} Qd7 {[%emt 0:01:55]} 27. Qh4 $18 {[%emt 0:00:58]} Bf5 {[%emt 0:02:37]} 28. Re7 {[%emt 0:04:04]} Ng6 {[%emt 0:01:57]} 29. Qxh6 {[%emt 0:00:55]} Qxe7 {[%emt 0:02:29]} 30. Bxe7 {[%emt 0:01:41]} Nxe7 {[%emt 0:00:30]} 31. Qg5+ {[%emt 0:00:30]} Bg6 {[%emt 0:00:30]} 1-0

[Event "Kuwait Championship Stage-I 2024"]
[Site "Qadsiya"]
[Date "2024.01.23"]
[Round "2.4"]
[White "Almuhaini, Abdulaziz"]
[Black "Alhejab, Meshal"]
[Result "0-1"]
[ECO "B92"]
[WhiteElo "1374"]
[BlackElo "1787"]
[Annotator "NA RC COMBH"]
[PlyCount "58"]
[EventDate "2024.01.22"]
[EventType "swiss"]
[EventCountry "KUW"]
[SourceTitle "playchess.com"]
[Source "ChessBase"]
[SourceQuality "1"]
[TimeControl "5400+30"]

1. e4 {[%emt 0:00:04]} c5 {[%emt 0:00:07]} 2. Nf3 {[%emt 0:00:11]} d6 {[%emt 0:00:09]} 3. d4 {[%emt 0:00:09]} cxd4 {[%emt 0:00:07]} 4. Nxd4 {[%emt 0:00:14]} Nf6 {[%emt 0:00:10]} 5. Nc3 {[%emt 0:00:34]} a6 {[%emt 0:00:17]} 6. Be2 {[%emt 0:03:02]} e5 {[%emt 0:00:20]} 7. Nb3 {[%emt 0:00:45]} Be7 {[%emt 0:00:36]} 8. O-O {[%emt 0:02:46]} O-O {[%emt 0:00:40]} 9. Be3 {[%emt 0:03:39]} Be6 {[%emt 0:00:22]} 10. Kh1 {[%emt 0:02:46]} Nc6 {[%emt 0:04:57]} 11. f4 {[%emt 0:05:28]} exf4 {[%emt 0:00:25]} 12. Bxf4 {[%emt 0:01:02]} Rc8 {[%emt 0:00:40]} 13. Nd4 {[%emt 0:07:56]} Nxd4 {[%emt 0:14:03]} 14. Qxd4 {[%emt 0:00:21]} Re8 {[%emt 0:01:59]} 15. Bd3 {[%emt 0:03:44]} d5 {[%emt 0:14:53]} 16. Rae1 {[%emt 0:14:35]} Bc5 {[%emt 0:09:44]} 17. Qe5 {[%emt 0:11:09]} Ng4 {[%emt 0:02:05]} 18. Qh5 {[%emt 0:08:50]} g6 {[%emt 0:02:28]} 19. Qxg4 {[%emt 0:06:03]} Bxg4 {[%emt 0:00:20]} 20. Nxd5 {[%emt 0:00:44]} Bd4 {[%emt 0:04:23]} 21. c3 {[%emt 0:05:10]} Bg7 {[%emt 0:02:28]} 22. Bc2 {[%emt 0:00:58]} Be6 {[%emt 0:01:12]} 23. Bb3 {[%emt 0:01:04]} h5 {[%emt 0:05:58]} 24. Re2 {[%emt 0:03:20]} Bxd5 {[%emt 0:00:53]} 25. Bxd5 {[%emt 0:00:17]} Qxd5 {[%emt 0:00:20]} 26. exd5 {[%emt 0:00:13]} Rxe2 {[%emt 0:00:06]} 27. d6 {[%emt 0:01:43]} Rd8 {[%emt 0:00:30]} 28. Rd1 {[%emt 0:01:35]} g5 {[%emt 0:00:15]} 29. Bxg5 {[%emt 0:01:31]} Rxd6 {[%emt 0:00:05]} 0-1

[Event "Kuwait Championship Stage-I 2024"]
[Site "Qadsiya"]
[Date "2024.01.23"]
[Round "2.5"]
[White "Alsaqer, Meshal"]
[Black "Albaloul, Mohammad"]
[Result "1-0"]
[ECO "D02"]
[WhiteElo "1753"]
[BlackElo "1378"]
[Annotator "NA RC COMBH"]
[PlyCount "89"]
[EventDate "2024.01.22"]
[EventType "swiss"]
[EventCountry "KUW"]
[SourceTitle "playchess.com"]
[Source "ChessBase"]
[SourceQuality "1"]
[TimeControl "5400+30"]

1. d4 {[%emt 0:12:10]} d5 {[%emt 0:00:11]} 2. Nf3 {[%emt 0:00:20]} Nf6 {[%emt 0:00:08]} 3. c3 {[%emt 0:00:37]} Bf5 {[%emt 0:01:09]} 4. Qb3 {[%emt 0:00:48]} b6 {[%emt 0:08:09]} 5. Bg5 {[%emt 0:01:38]} e6 {[%emt 0:01:16]} 6. e3 {[%emt 0:01:00]} Be7 {[%emt 0:00:15]} 7. Qa4+ {[%emt 0:03:18]} Qd7 {[%emt 0:02:38]} 8. Bb5 {[%emt 0:01:15]} c6 {[%emt 0:00:18]} 9. Be2 {[%emt 0:00:12]} b5 {[%emt 0:00:42]} 10. Qb3 {[%emt 0:00:30]} O-O {[%emt 0:00:55]} 11. O-O {[%emt 0:01:43]} h6 {[%emt 0:00:13]} 12. Bf4 {[%emt 0:00:52]} Bd6 {[%emt 0:08:02]} 13. a4 {[%emt 0:02:47]} Bxf4 {[%emt 0:01:23]} 14. exf4 {[%emt 0:00:11]} bxa4 {[%emt 0:02:12]} 15. Rxa4 {[%emt 0:01:33]} Qd6 {[%emt 0:03:00]} 16. g3 {[%emt 0:02:08]} Nbd7 {[%emt 0:00:15]} 17. Nbd2 {[%emt 0:01:26]} c5 {[%emt 0:01:53]} 18. Qa3 {[%emt 0:02:34]} Qc7 {[%emt 0:02:28]} 19. Ra1 {[%emt 0:01:17]} c4 {[%emt 0:04:00]} 20. Ne5 {[%emt 0:05:32]} Rfb8 {[%emt 0:01:58]} 21. Bf3 {[%emt 0:01:15]} Bc2 {[%emt 0:05:40]} 22. Ra5 {[%emt 0:03:32]} Nxe5 {[%emt 0:18:30]} 23. fxe5 {[%emt 0:00:10]} Ne4 {[%emt 0:00:19]} 24. Bxe4 {[%emt 0:02:32]} dxe4 {[%emt 0:00:10]} 25. Rc5 {[%emt 0:00:59]} Qb7 {[%emt 0:06:12]} 26. Nxc4 {[%emt 0:02:02]} Bd3 {[%emt 0:00:41]} 27. b4 {[%emt 0:01:06]} Bxc4 {[%emt 0:01:13]} 28. Rxc4 {[%emt 0:00:00]} Qb5 {[%emt 0:00:44]} 29. Rc7 {[%emt 0:01:42]} a5 {[%emt 0:05:26]} 30. bxa5 {[%emt 0:03:21]} Qd3 {[%emt 0:01:18]} 31. Qc1 {[%emt 0:01:11]} Rb3 {[%emt 0:02:11]} 32. Qf4 {[%emt 0:01:24]} Qf3 {[%emt 0:03:12]} 33. Qxf3 {[%emt 0:01:43]} exf3 {[%emt 0:00:11]} 34. h3 {[%emt 0:00:47]} Rb2 {[%emt 0:01:36]} 35. a6 {[%emt 0:00:38]} Rbb8 {[%emt 0:03:21]} 36. g4 {[%emt 0:01:07]} f6 {[%emt 0:00:46]} 37. exf6 {[%emt 0:00:27]} gxf6 {[%emt 0:00:07]} 38. a7 {[%emt 0:03:33]} Rb6 {[%emt 0:01:03]} 39. Kh2 {[%emt 0:00:36]} e5 {[%emt 0:00:21]} 40. Kg3 {[%emt 0:01:48]} exd4 {[%emt 0:00:40]} 41. cxd4 {[%emt 0:00:14]} Kh8 {[%emt 0:04:22]} 42. d5 {[%emt 0:01:44]} Rd6 {[%emt 0:00:16]} 43. Rb7 {[%emt 0:00:32]} Rdd8 {[%emt 0:00:15]} 44. Kxf3 {[%emt 0:01:11]} Rxd5 {[%emt 0:00:45]} 45. Rb8+ {[%emt 0:00:11]} 1-0

[Event "Kuwait Championship Stage-I 2024"]
[Site "Qadsiya"]
[Date "2024.01.23"]
[Round "2.6"]
[White "AlShourfaa, Hazaa"]
[Black "Alsuwailem, Othman"]
[Result "1-0"]
[ECO "B24"]
[WhiteElo "1701"]
[BlackElo "1366"]
[Annotator "NA RC COMBH"]
[PlyCount "106"]
[EventDate "2024.01.22"]
[EventType "swiss"]
[EventCountry "KUW"]
[SourceTitle "playchess.com"]
[Source "ChessBase"]
[SourceQuality "1"]
[TimeControl "5400+30"]

1. e4 {[%emt 0:01:33]} c5 {[%emt 0:00:01]} 2. Nc3 {[%emt 0:00:31]} e6 {[%emt 0:00:04]} 3. g3 {[%emt 0:01:58]} Nc6 {[%emt 0:00:45]} 4. Bg2 {[%emt 0:00:06]} Nf6 {[%emt 0:01:03]} 5. Nge2 {[%emt 0:00:10]} Be7 {[%emt 0:01:11]} 6. O-O {[%emt 0:00:14]} O-O {[%emt 0:01:40]} 7. d3 {[%emt 1:29:28]} d6 {[%emt 0:02:07]} 8. h3 {[%emt 0:00:00]} a6 {[%emt 0:00:16]} 9. f4 {[%emt 0:00:00]} Qc7 {[%emt 0:01:02]} 10. g4 {[%emt 0:00:00]} g6 {[%emt 0:12:54]} 11. Ng3 {[%emt 0:00:00]} Nd7 {[%emt 0:04:48]} 12. f5 {[%emt 0:00:00]} exf5 {[%emt 0:09:36]} 13. Nd5 {[%emt 0:00:00]} Qd8 {[%emt 0:00:17]} 14. Nxe7+ {[%emt 0:00:00]} Qxe7 {[%emt 0:01:20]} 15. Bh6 {[%emt 0:00:00]} Re8 {[%emt 0:12:48]} 16. gxf5 {[%emt 0:00:00]} Qh4 {[%emt 0:04:25]} 17. fxg6 {[%emt 0:00:00]} hxg6 {[%emt 0:02:48]} 18. Bf4 {[%emt 0:00:00]} Nde5 {[%emt 0:04:53]} 19. Nh1 {[%emt 0:00:00]} Bxh3 {[%emt 0:03:11]} 20. Bg3 {[%emt 0:00:00]} Qh6 {[%emt 0:00:07]} 21. Bf4 {[%emt 0:00:00]} Qh7 {[%emt 0:00:05]} 22. c3 {[%emt 0:00:00]} Ng4 {[%emt 0:14:05]} 23. Rf3 {[%emt 0:00:00]} Bxg2 {[%emt 0:02:35]} 24. Kxg2 {[%emt 0:00:00]} Rad8 {[%emt 0:07:20]} 25. Rh3 {[%emt 0:00:00]} Qg7 {[%emt 0:00:03]} 26. Qxg4 {[%emt 0:00:00]} Ne5 {[%emt 0:03:53]} 27. Qh4 {[%emt 0:00:00]} f6 {[%emt 0:04:43]} 28. Bxe5 {[%emt 0:00:00]} Rxe5 {[%emt 0:00:45]} 29. Qh6 {[%emt 0:00:00]} d5 {[%emt 0:00:56]} 30. Qxg7+ {[%emt 0:00:00]} Kxg7 {[%emt 0:00:03]} 31. Nf2 {[%emt 0:00:00]} dxe4 {[%emt 0:00:40]} 32. Nxe4 {[%emt 0:00:00]} f5 {[%emt 0:00:41]} 33. Ng3 {[%emt 0:00:00]} Kf6 {[%emt 0:02:05]} 34. Kf2 {[%emt 0:00:00]} g5 {[%emt 0:01:19]} 35. Re1 {[%emt 0:00:00]} Rxe1 {[%emt 0:00:05]} 36. Kxe1 {[%emt 0:00:00]} g4 {[%emt 0:00:25]} 37. Rh6+ {[%emt 0:00:00]} Ke5 {[%emt 0:00:01]} 38. Ke2 {[%emt 0:00:00]} Kf4 {[%emt 0:01:50]} 39. Nf1 {[%emt 0:00:00]} Re8+ {[%emt 0:00:32]} 40. Kf2 {[%emt 0:00:00]} Rd8 {[%emt 0:00:24]} 41. Rb6 {[%emt 0:00:00]} Rd7 {[%emt 0:00:10]} 42. a4 {[%emt 0:00:00]} Kg5 {[%emt 0:00:21]} 43. d4 {[%emt 0:00:00]} cxd4 44. cxd4 {[%emt 0:00:00]} Rxd4 {[%emt 0:00:17]} 45. Rxb7 {[%emt 0:00:00]} Rxa4 {[%emt 0:00:02]} 46. Rb6 {[%emt 0:01:44]} a5 {[%emt 0:00:59]} 47. Rb5 {[%emt 0:00:13]} Rb4 {[%emt 0:00:48]} 48. Rxb4 {[%emt 0:01:17]} axb4 {[%emt 0:00:01]} 49. Ne3 {[%emt 0:01:29]} f4 {[%emt 0:01:57]} 50. Nc2 {[%emt 0:00:20]} Kh4 {[%emt 0:02:29]} 51. Nxb4 {[%emt 0:00:17]} Kh3 {[%emt 0:00:14]} 52. Kg1 {[%emt 0:00:27]} f3 {[%emt 0:00:53]} 53. Nd3 {[%emt 0:00:02]} g3 {[%emt 0:01:03]} 1-0

[Event "Kuwait Championship Stage-I 2024"]
[Site "Qadsiya"]
[Date "2024.01.23"]
[Round "2.7"]
[White "Hussain, Hashem"]
[Black "Alrefae, Ahmad"]
[Result "1-0"]
[ECO "B28"]
[WhiteElo "1642"]
[BlackElo "1338"]
[Annotator "NA RC COMBH"]
[PlyCount "131"]
[EventDate "2024.01.22"]
[EventType "swiss"]
[EventCountry "KUW"]
[SourceTitle "playchess.com"]
[Source "ChessBase"]
[SourceQuality "1"]
[TimeControl "5400+30"]

1. e4 {[%emt 0:01:57]} c5 {[%emt 0:00:05]} 2. c3 {[%emt 0:00:56]} d5 {[%emt 0:00:09]} 3. exd5 {[%emt 0:00:06]} Nf6 {[%emt 0:00:07]} 4. Nf3 {[%emt 0:01:47]} Nxd5 {[%emt 0:00:18]} 5. d4 {[%emt 0:00:20]} e6 {[%emt 0:01:24]} 6. Be2 {[%emt 0:00:32]} Nc6 {[%emt 0:01:17]} 7. O-O {[%emt 0:00:49]} Be7 {[%emt 0:05:35]} 8. c4 {[%emt 0:04:57]} Nf6 {[%emt 0:02:25]} 9. dxc5 {[%emt 0:02:02]} Qxd1 {[%emt 0:07:27]} 10. Rxd1 {[%emt 0:00:59]} Bxc5 {[%emt 0:00:12]} 11. Nc3 {[%emt 0:01:07]} a6 {[%emt 0:05:19]} 12. a3 {[%emt 0:02:21]} O-O {[%emt 0:07:15]} 13. b4 {[%emt 0:02:04]} Ba7 {[%emt 0:00:09]} 14. h3 {[%emt 0:02:40]} e5 {[%emt 0:11:28]} 15. Bg5 {[%emt 0:13:59]} Nd7 {[%emt 0:02:56]} 16. Nd5 {[%emt 0:06:50]} f6 {[%emt 0:17:25]} 17. Bc1 {[%emt 0:04:11]} Nd4 {[%emt 0:18:00]} 18. Nxd4 {[%emt 0:02:41]} Bxd4 {[%emt 0:00:07]} 19. Ra2 {[%emt 0:00:16]} Rf7 {[%emt 0:12:25]} 20. c5 {[%emt 0:02:44]} Nf8 {[%emt 0:01:34]} 21. Nb6 {[%emt 0:09:27]} Be6 {[%emt 0:00:24]} 22. Rad2 {[%emt 0:06:48]} Rd8 {[%emt 0:00:30]} 23. Nc4 {[%emt 0:06:28]} Rfd7 {[%emt 0:00:54]} 24. Nb6 {[%emt 0:02:37]} Rf7 {[%emt 0:00:09]} 25. Kf1 {[%emt 0:01:37]} Bb3 {[%emt 0:01:23]} 26. Re1 {[%emt 0:02:21]} Ne6 {[%emt 0:00:36]} 27. Rd3 {[%emt 0:02:08]} Bc2 {[%emt 0:01:15]} 28. Rd2 {[%emt 0:00:49]} Bb3 {[%emt 0:00:04]} 29. Bb2 {[%emt 0:01:13]} Bxb2 {[%emt 0:00:58]} 30. Rxb2 {[%emt 0:00:14]} Nd4 {[%emt 0:00:14]} 31. Rd2 {[%emt 0:03:24]} Re8 {[%emt 0:01:02]} 32. Bh5 {[%emt 0:04:16]} g6 {[%emt 0:00:06]} 33. Rxd4 {[%emt 0:00:43]} gxh5 {[%emt 0:00:09]} 34. Rh4 {[%emt 0:00:22]} Rd8 {[%emt 0:00:54]} 35. Rxh5 {[%emt 0:00:26]} Rd4 {[%emt 0:00:23]} 36. Rf5 {[%emt 0:01:11]} e4 {[%emt 0:00:56]} 37. Ke2 {[%emt 0:03:09]} Kg7 {[%emt 0:00:59]} 38. Rc1 {[%emt 0:01:06]} Kg6 {[%emt 0:01:24]} 39. Rf4 {[%emt 0:00:55]} f5 {[%emt 0:00:16]} 40. Rc3 {[%emt 0:00:27]} Be6 {[%emt 0:01:19]} 41. Ke3 {[%emt 0:02:32]} Rd8 {[%emt 0:00:25]} 42. f3 {[%emt 0:00:34]} exf3 {[%emt 0:00:49]} 43. Rxf3 {[%emt 0:00:12]} Rc7 {[%emt 0:00:38]} 44. Rd3 {[%emt 0:01:46]} Rxd3+ {[%emt 0:00:12]} 45. Kxd3 {[%emt 0:00:09]} Re7 {[%emt 0:00:08]} 46. Kd4 {[%emt 0:00:38]} Bf7 {[%emt 0:00:23]} 47. Re3 {[%emt 0:01:02]} Rc7 {[%emt 0:00:58]} 48. Nc4 {[%emt 0:00:37]} Bxc4 {[%emt 0:00:32]} 49. Kxc4 {[%emt 0:00:07]} Kf6 {[%emt 0:00:11]} 50. a4 {[%emt 0:00:37]} Rg7 {[%emt 0:00:13]} 51. g3 {[%emt 0:00:42]} h5 {[%emt 0:00:06]} 52. b5 {[%emt 0:01:11]} axb5+ {[%emt 0:00:14]} 53. axb5 {[%emt 0:00:23]} h4 {[%emt 0:00:05]} 54. gxh4 {[%emt 0:00:18]} f4 {[%emt 0:00:04]} 55. Rf3 {[%emt 0:00:49]} Ke5 {[%emt 0:00:16]} 56. c6 {[%emt 0:00:42]} Ke4 {[%emt 0:01:23]} 57. Rf1 {[%emt 0:00:49]} b6 {[%emt 0:00:28]} 58. Re1+ {[%emt 0:00:39]} Kf3 {[%emt 0:00:05]} 59. Kd5 {[%emt 0:00:08]} Kf2 {[%emt 0:00:25]} 60. Ra1 {[%emt 0:00:39]} f3 {[%emt 0:00:56]} 61. Kd6 {[%emt 0:00:19]} Rg6+ {[%emt 0:01:35]} 62. Kd7 {[%emt 0:00:28]} Rg7+ {[%emt 0:00:05]} 63. Kc8 {[%emt 0:00:17]} Ke2 {[%emt 0:00:14]} 64. c7 {[%emt 0:00:20]} f2 {[%emt 0:00:44]} 65. Kb8 {[%emt 0:00:32]} Rg1 {[%emt 0:00:20]} 66. Ra2+ {[%emt 0:00:07]} 1-0